fUSD/lending_fUSD_20241118
["ID","MTS","AMOUNT","RATE_DAILY","PERIOD"]
[342457667,1731894167793,1259.6,8.219e-05,2]
[342457669,1731894443088,-250.0,8.923e-05,2]
[342457670,1731894443110,-1000.0,8.933e-05,2]
[342457671,1731894443132,-250.0,8.942e-05,2]
[342457672,1731894443155,-336.61,8.966e-05,2]
[342457673,1731894443177,-150.0,9.26e-05,2]
[342457674,1731894443200,-16850.72911637,9.413e-05,2]
[342457700,1731894632469,-1300.0,9e-05,3]
[342457701,1731894632479,-1080.2000004,9.1e-05,3]
[342457702,1731894632492,-1519.7999996,9.1e-05,3]
[342457703,1731894632502,-656.57285017,9.2e-05,3]
[342457704,1731894632513,-1297.00343464,9.2e-05,3]
[342457705,1731894632525,-1947.2218158,9.2e-05,3]
[342457706,1731894632538,-99.20189939,9.2e-05,3]
[342457707,1731894632547,-2517.3860932,9.3e-05,3]
[342457708,1731894632559,-1498.4689072,9.3e-05,3]
[342457709,1731894632571,-361.64219,9.3e-05,3]
[342457710,1731894632582,-447.71,9.3e-05,3]
[342457711,1731894632594,-474.7928096,9.3e-05,3]
[342457712,1731894632604,-826.57116546,9.4e-05,3]
[342457713,1731894632616,-950.26546194,9.4e-05,3]
[342457714,1731894632627,-1266.60175907,9.4e-05,3]
[342457715,1731894632642,-2557.76120831,9.4e-05,3]
[342457716,1731894632654,-998.80040522,9.4e-05,3]
[342457717,1731894632664,-3304.06088363,9.413e-05,2]
[342457718,1731894632675,-1300.0,9.5e-05,3]
[342457719,1731894632685,-1300.0,9.6e-05,3]
[342457720,1731894632694,-169.0,9.606e-05,2]
[342457721,1731894632704,-1300.0,9.7e-05,3]
[342457722,1731894632715,-421.31,9.701e-05,2]
[342457723,1731894632726,-1300.0,9.8e-05,3]
[342457724,1731894632736,-3904.0,9.863e-05,2]
[342457725,1731894632746,-1002.70262198,9.872e-05,2]
[342457726,1731894632756,-150.0,9.872e-05,2]
[342457727,1731894632766,-12195.7653,9.873e-05,2]
[342457728,1731894632776,-10877.1473,9.873e-05,2]
[342457729,1731894632785,-160.499166,9.875e-05,2]
[342457730,1731894632795,-233.6395,9.89e-05,2]
[342457731,1731894632805,-573.5821,9.9e-05,2]
[342457732,1731894632815,-250.4622,9.9e-05,2]
[342457733,1731894632824,-1097.5757,9.9e-05,2]
[342457734,1731894632833,-1000.0,9.9e-05,2]
[342457735,1731894632843,-150.251,9.9e-05,2]
[342457736,1731894632852,-160.499166,9.9e-05,2]
[342457737,1731894632862,-5000.0,9.9e-05,2]
[342457738,1731894632871,-6299.443561,9.9e-05,2]
[342457739,1731894632880,-2003.76,9.9e-05,2]
[342457740,1731894632890,-27088.9087,9.9e-05,2]
[342457742,1731894632899,-2981.3362,9.9e-05,2]
[342457744,1731894632908,-10710.42932377,9.9e-05,2]
[342457746,1731894632920,-627.6796534,9.9e-05,2]
[342457753,1731894632990,-2005.20139994,9.9e-05,2]
[342457756,1731894633002,-585.03692289,9.9e-05,2]
[342457757,1731894633011,-500.0,9.9e-05,2]
[342457759,1731894633021,-1707.0,9.9e-05,3]
[342457761,1731894633030,-190.92875159,9.9e-05,2]
[342457763,1731894633040,-1000.0,9.909e-05,2]
[342457765,1731894633049,-3276.25817206,9.91e-05,2]
[342457767,1731894633059,-458.9501,9.95e-05,2]
[342457769,1731894633068,-1000.0,9.95e-05,2]
[342457771,1731894633078,-1000.0,9.95e-05,2]
[342457773,1731894633087,-1000.0,9.95e-05,2]
[342457775,1731894633096,-1000.0,9.95e-05,2]
[342457777,1731894633106,-1000.0,9.95e-05,2]
[342457779,1731894633115,-1000.0,9.95e-05,2]
[342457781,1731894633125,-1000.0,9.95e-05,2]
[342457783,1731894633134,-1000.0,9.95e-05,2]
[342457785,1731894633143,-1000.0,9.95e-05,2]
[342457786,1731894633152,-1000.0,9.95e-05,2]
[342457788,1731894633162,-1000.0,9.95e-05,2]
[342457790,1731894633171,-1000.0,9.95e-05,2]
[342457792,1731894633180,-1000.0,9.95e-05,2]
[342457794,1731894633195,-1000.0,9.95e-05,2]
[342457796,1731894633204,-1000.0,9.95e-05,2]
[342457798,1731894633213,-1000.0,9.95e-05,2]
[342457800,1731894633223,-1000.0,9.95e-05,2]
[342457802,1731894633233,-1000.0,9.95e-05,2]
[342457804,1731894633242,-1000.0,9.95e-05,2]
[342457806,1731894633252,-1000.0,9.95e-05,2]
[342457808,1731894633261,-1000.0,9.95e-05,2]
[342457810,1731894633271,-1000.0,9.95e-05,2]
[342457811,1731894633280,-1000.0,9.95e-05,2]
[342457813,1731894633290,-1000.0,9.95e-05,2]
[342457815,1731894633300,-1000.0,9.95e-05,2]
[342457817,1731894633309,-1000.0,9.95e-05,2]
[342457819,1731894633318,-1000.0,9.95e-05,2]
[342457821,1731894633328,-608.7632,9.95e-05,2]
[342457823,1731894633337,-410.30714712,9.95e-05,2]
[342457825,1731894633347,-845.8961665,9.952e-05,2]
[342457826,1731894633357,-410.30714712,9.952e-05,2]
[342457827,1731894633367,-5110.17696662,9.954e-05,2]
[342457828,1731894633377,-9920.1129867,9.955e-05,2]
[342457829,1731894633387,-200.0,9.957e-05,2]
[342457830,1731894633396,-845.8961665,9.958e-05,2]
[342457831,1731894633405,-200.0,9.96e-05,2]
[342457832,1731894633415,-845.8961665,9.961e-05,2]
[342457833,1731894633424,-200.0,9.962e-05,2]
[342457834,1731894633435,-5110.17696662,9.963e-05,2]
[342457835,1731894633445,-676.7169332,9.967e-05,2]
[342457836,1731894633455,-676.7169332,9.969e-05,2]
[342457837,1731894633464,-5110.17696662,9.969e-05,2]
[342457838,1731894633474,-193.0,9.973e-05,2]
[342457839,1731894633484,-5793.0,9.973e-05,2]
[342457840,1731894633494,-161.74265771,9.973e-05,2]
[342457841,1731894633503,-500.53435776,9.973e-05,2]
[342457842,1731894633513,-500.42763205,9.973e-05,2]
[342457843,1731894633522,-500.0,9.973e-05,2]
[342457844,1731894633531,-162.93478244,9.973e-05,2]
[342457845,1731894633540,-500.86378892,9.973e-05,2]
[342457846,1731894633550,-160.50623343,9.973e-05,2]
[342457847,1731894633559,-151.94132058,9.973e-05,2]
[342457848,1731894633569,-500.11989628,9.973e-05,2]
[342457849,1731894633578,-501.12355864,9.973e-05,2]
[342457850,1731894633587,-500.0,9.973e-05,2]
[342457851,1731894633597,-202.97744091,9.973e-05,2]
[342457852,1731894633607,-8360.20296748,9.975e-05,2]
[342457853,1731894633619,-1559.91001922,9.975e-05,2]
[342457854,1731894633630,-200.0,9.976e-05,2]
[342457855,1731894633643,-5110.17696662,9.978e-05,2]
[342457856,1731894633652,-845.8961665,9.979e-05,2]
[342457857,1731894633662,-676.7169332,9.979e-05,2]
[342457858,1731894633672,-200.0,9.98e-05,2]
[342457859,1731894633682,-410.30714712,9.98e-05,2]
[342457860,1731894633693,-676.7169332,9.982e-05,2]
[342457862,1731894633704,-410.30714712,9.983e-05,2]
[342457863,1731894633714,-200.0,9.984e-05,2]
[342457864,1731894633724,-200.0,9.989e-05,2]
[342457865,1731894633735,-9920.1129867,9.99e-05,2]
[342457866,1731894633744,-12485.145613,9.99e-05,2]
[342457867,1731894633754,-18525.1548403,9.99e-05,2]
[342457868,1731894633763,-8500.0,9.991e-05,2]
[342457869,1731894633773,-410.30714712,9.992e-05,2]
[342457870,1731894633782,-5110.17696662,9.992e-05,2]
[342457871,1731894633791,-200.0,9.992e-05,2]
[342457872,1731894633801,-10767.1686098,9.993e-05,2]
[342457873,1731894633811,-9049.1916065,9.993e-05,2]
[342457874,1731894633821,-7331.2146032,9.993e-05,2]
[342457875,1731894633831,-15985.6476144,9.993e-05,2]
[342457876,1731894633840,-13446.1403885,9.993e-05,2]
[342457877,1731894633850,-10906.6331625,9.993e-05,2]
[342457878,1731894633859,-676.7169332,9.993e-05,2]
[342457879,1731894633868,-200.0,9.997e-05,2]
[342457880,1731894633878,-2046.35821518,9.998e-05,2]
[342457881,1731894633890,-7873.75477152,9.998e-05,2]
[342457882,1731894633899,-9920.1129867,9.998e-05,2]
[342457883,1731894633909,-845.8961665,9.999e-05,2]
[342457884,1731894633918,-294.29200481,9.999e-05,2]
[342457885,1731894633927,-1279.4396679,9.999e-05,3]
[342457886,1731894633940,-737.89,9.999e-05,2]
[342457887,1731894633950,-3277.9835173,9.999e-05,2]
[342457888,1731894633960,-1075.42940576,9.999e-05,3]
[342457889,1731894633970,-1075.42940575,9.999e-05,3]
[342457890,1731894633979,-274.12547363,0.0001,2]
[342457891,1731894633988,-29629.73045679,0.0001,2]
[342457892,1731894634000,-73948.32654719,0.0001,2]
[342457893,1731894634012,-1098.09,0.0001,2]
[342457894,1731894634022,-5027381.28250769,0.0001,2]
[342457896,1731894638404,-503.43,8.935e-05,2]
[342457897,1731894638413,-5800.0,9.992e-05,2]
[342457898,1731894638423,-13770.62883693,0.0001,2]
[342457899,1731894638611,-462.45588772,0.0001,2]
[342457900,1731894638623,-721.27374421,0.0001,2]
[342457901,1731894638635,-134259.05129899,0.0001,2]
[342457902,1731894638647,-3119.95092944,0.0001,2]
[342457903,1731894638656,-5035004.41924907,0.0001,2]
[342457904,1731894638667,-7259.69147377,0.0001,2]
[342457905,1731894638679,-1204.93695339,0.0001,2]
[342457906,1731894638829,-1716.22619719,0.0001,2]
[342457907,1731894638841,-1602627.01359576,0.0001,2]
[342457908,1731894640491,-2345.90135041,0.0001,2]
[342457911,1731894640503,-2228.76733875,0.0001,2]
[342457913,1731894640515,-356.97,0.0001,2]
[342457914,1731894640527,-300.0,0.0001,2]
[342457915,1731894640539,-1827.61435771,0.0001,2]
[342457916,1731894640551,-490.62428513,0.0001,2]
[342457917,1731894640562,-20022.27303796,0.0001,2]
[342457918,1731894640774,-1166.31494601,0.0001,2]
[342457919,1731894640861,-8143.33150963,0.0001,2]
[342457920,1731894640873,-323.63747923,0.0001,2]
[342457921,1731894640884,-11507.880215,0.0001,2]
[342457922,1731894640896,-715.50875528,0.0001,2]
[342457923,1731894640907,-9880.91927679,0.0001,2]
[342457929,1731894643400,-382.92113158,9.8e-05,2]
[342457930,1731894643414,-662.88302775,9.8e-05,2]
[342457931,1731894643423,-4288.07316775,0.0001,2]
[342457932,1731894643436,-8357.16631849,0.0001,2]
[342457933,1731894643450,-6314.90585176,0.0001,2]
[342457934,1731894643469,-875615.06016573,0.0001,2]
[342457935,1731894643481,-500.57827625,0.0001,2]
[342457936,1731894643493,-3953.81927455,0.0001,2]
[342457937,1731894643505,-12348.10139249,0.0001,2]
[342457938,1731894643517,-6069.351735,0.0001,2]
[342457939,1731894643599,-331.26187807,0.0001,2]
[342457940,1731894643612,-4541.9157,0.0001,2]
[342457941,1731894643625,-7681.97834432,0.0001,2]
[342457942,1731894643637,-5280.67604371,0.0001,2]
[342457943,1731894643652,-317.2181064,0.0001,2]
[342457944,1731894643674,-3672.23919264,0.0001,2]
[342457958,1731894646499,-1060.66763246,0.0001,2]
[342457959,1731894646511,-540.66696993,0.0001,2]
[342457960,1731894646522,-5337.05418157,0.0001,2]
[342457961,1731894646613,-3296.42033663,0.0001,2]
[342457962,1731894646733,-286.25652751,0.0001,2]
[342457963,1731894646746,-34920.18820338,0.0001,2]
[342457964,1731894646758,-4526.39403604,0.0001,2]
[342457965,1731894646770,-5522.00025,0.0001,2]
[342457966,1731894646782,-1766.26000022,0.0001,2]
[342457967,1731894646793,-6100.88407101,0.0001,2]
[342457968,1731894646806,-1138.28203649,0.0001,2]
[342457969,1731894646818,-4127.08065414,0.0001,2]
[342457970,1731894920503,1196.62,8.219e-05,2]
[342457971,1731895073372,599.0,0.00023,120]
[342457973,1731895590108,1136.78,8.219e-05,2]
[342457974,1731895627127,-530.71,8.752e-05,2]
[342457975,1731895627150,-250.0,8.773e-05,2]
[342457976,1731895627171,-1000.0,8.779e-05,2]
[342457977,1731895627192,-250.0,8.782e-05,2]
[342457978,1731895627214,-945.59,8.879e-05,2]
[342457979,1731895627236,-174.0,9.181e-05,2]
[342457980,1731895627257,-258.0545,9.75e-05,2]
[342457981,1731895627278,-150.0,9.76e-05,2]
[342457982,1731895627299,-150.8,9.76e-05,2]
[342457983,1731895627320,-150.0,9.76e-05,2]
[342457984,1731895627346,-150.0,9.76e-05,2]
[342457985,1731895627369,-150.0,9.76e-05,2]
[342457986,1731895627392,-530.71,9.846e-05,2]
[342457987,1731895627416,-150.0,9.849e-05,2]
[342457988,1731895627440,-300.0,9.849e-05,2]
[342457989,1731895627462,-15472.62748885,9.85e-05,2]
[342457997,1731895769112,-367.4,8.913e-05,2]
[342457998,1731895769135,-1000.0,8.994e-05,2]
[342457999,1731895775820,250.0,8.937e-05,2]
[342458000,1731895789226,250.0,8.937e-05,2]
[342458008,1731895832625,-900.0,9e-05,3]
[342458009,1731895832635,-1149.41666824,9.1e-05,3]
[342458010,1731895832647,-453.99482301,9.1e-05,3]
[342458011,1731895832658,-196.58850875,9.1e-05,3]
[342458012,1731895832667,-2700.0,9.2e-05,3]
[342458013,1731895832677,-3568.28597298,9.3e-05,3]
[342458014,1731895832688,-131.71402702,9.3e-05,3]
[342458015,1731895832698,-4600.0,9.4e-05,3]
[342458016,1731895832708,-236.99,9.4e-05,2]
[342458017,1731895832718,-900.0,9.5e-05,3]
[342458018,1731895832728,-150.0,9.5e-05,2]
[342458019,1731895832737,-150.0,9.5e-05,2]
[342458020,1731895832746,-150.0,9.5e-05,2]
[342458021,1731895832756,-900.0,9.6e-05,3]
[342458022,1731895832767,-714.21,9.67e-05,2]
[342458023,1731895832776,-900.0,9.7e-05,3]
[342458024,1731895832786,-150.0,9.76e-05,2]
[342458025,1731895832795,-150.0,9.76e-05,2]
[342458026,1731895832805,-900.0,9.8e-05,3]
[342458027,1731895832815,-150.0,9.849e-05,2]
[342458028,1731895832824,-35817.08597298,9.85e-05,2]
[342458029,1731895832871,-721.18580487,9.85e-05,2]
[342458030,1731895832883,-2375.89999928,9.85e-05,2]
[342458031,1731895832895,-5265.15368676,9.85e-05,2]
[342458032,1731895832907,-588.55941709,9.85e-05,2]
[342458033,1731895832918,-495.5346886,9.85e-05,2]
[342458034,1731895833058,-1795.4653114,9.85e-05,2]
[342458035,1731895833074,-328798.86883017,9.85e-05,2]
[342458036,1731895833084,-160.499166,9.9e-05,2]
[342458037,1731895833094,-1300.0,9.9e-05,3]
[342458038,1731895833104,-5361.48662438,9.9e-05,2]
[342458039,1731895833114,-5800.0,9.966e-05,2]
[342458040,1731895833125,-500.19284809,9.973e-05,2]
[342458041,1731895833135,-225.48951167,9.973e-05,2]
[342458042,1731895833144,-501.21711699,9.973e-05,2]
[342458043,1731895833154,-500.0,9.973e-05,2]
[342458044,1731895833164,-161.02852898,9.973e-05,2]
[342458045,1731895833174,-5800.0,9.975e-05,2]
[342458046,1731895833184,-5800.0,9.983e-05,2]
[342458047,1731895833194,-2476.0129304,9.99e-05,2]
[342458048,1731895833204,-178.5860338,9.99e-05,2]
[342458049,1731895833213,-178.58603378,9.99e-05,2]
[342458050,1731895833223,-178.58603378,9.99e-05,2]
[342458051,1731895833233,-3607.8309312,9.99e-05,2]
[342458052,1731895833243,-2119.507638,9.993e-05,2]
[342458053,1731895833254,-1763.0023456,9.993e-05,2]
[342458054,1731895833263,-1406.4970532,9.993e-05,2]
[342458055,1731895833274,-3111.0148685,9.993e-05,2]
[342458056,1731895833284,-2614.1988059,9.993e-05,2]
[342458057,1731895833294,-2117.3827432,9.993e-05,2]
[342458058,1731895833304,-8150.2280309,9.997e-05,2]
[342458059,1731895833314,-707.14,9.999e-05,2]
[342458060,1731895833324,-126844.3203734,0.0001,2]
[342458061,1731895833335,-653.14777444,0.0001,2]
[342458069,1731895838618,-21853.19089562,0.0001,2]
[342458072,1731895838628,-3119.95092944,0.0001,2]
[342458074,1731895838638,-19270.51374043,0.0001,2]
[342458075,1731895838650,-5600463.6003471,0.0001,2]
[342458076,1731895838662,-2614.11373492,0.0001,2]
[342458077,1731895838673,-12002.39028024,0.0001,2]
[342458078,1731895838685,-5361.47412423,0.0001,2]
[342458079,1731895839040,-2657.63140208,0.0001,2]
[342458080,1731895839052,-4739.57871187,0.0001,2]
[342458081,1731895839065,-860.77544283,0.0001,2]
[342458082,1731895839079,-999.991888,0.0001,2]
[342458083,1731895839091,-1813.4,0.0001,2]
[342458089,1731895840628,-370.3326102,0.0001,2]
[342458090,1731895840894,-378.317982,0.0001,2]
[342458091,1731895840906,-9043.99339255,0.0001,2]
[342458092,1731895840919,-10375.01063505,0.0001,2]
[342458093,1731895840931,-262.78837115,0.0001,2]
[342458094,1731895840942,-524.44813223,0.0001,2]
[342458098,1731895843611,-259.56926926,9.999e-05,2]
[342458099,1731895843620,-11769.03028816,0.0001,2]
[342458100,1731895843632,-3504.76364366,0.0001,2]
[342458101,1731895843644,-3567.77162227,0.0001,2]
[342458102,1731895843655,-112366.87971178,0.0001,2]
[342458103,1731895843667,-5329.04212254,0.0001,2]
[342458104,1731895843679,-10764.01897125,0.0001,2]
[342458105,1731895843691,-2987.805424,0.0001,2]
[342458106,1731895843702,-3022.90471636,0.0001,2]
[342458107,1731895843848,-646.2314293,0.0001,2]
[342458108,1731895843861,-5999.999985,0.0001,2]
[342458109,1731895843874,-598.96657373,0.0001,2]
[342458135,1731895847175,-2290.27688779,0.0001,2]
[342458136,1731895847189,-1115.600008,0.0001,2]
[342458137,1731895847218,-9869.33713961,0.0001,2]
[342458138,1731895847232,-1848.01480063,0.0001,2]
[342458139,1731895847244,-3700.0,0.0001,2]
[342458140,1731895847256,-14900.0,0.0001,2]
[342458141,1731895847294,-417.594,0.0001,2]
[342458144,1731896396919,1224.37,8.219e-05,2]
[342458146,1731896794153,-250.0,8.814e-05,2]
[342458147,1731896794176,-300.54,8.815e-05,2]
[342458148,1731896794199,-779.88720026,8.815e-05,2]
[342458153,1731896959887,-318.43,8.799e-05,2]
[342458154,1731896959910,-220.11279974,8.815e-05,2]
[342458155,1731896959934,-4256.43,8.818e-05,2]
[342458156,1731896959955,-1242.83596893,8.848e-05,2]
[342458157,1731896963133,-1447.87376958,8.848e-05,2]
[342458158,1731896963154,-250.0,8.848e-05,2]
[342458159,1731896963176,-239.07594442,8.886e-05,2]
[342458188,1731897031780,-242.49405558,8.886e-05,2]
[342458189,1731897031790,-150.71212578,9e-05,2]
[342458190,1731897031800,-525.22293735,9e-05,3]
[342458191,1731897031817,-274.77706265,9e-05,3]
[342458192,1731897031827,-1600.0,9.1e-05,3]
[342458193,1731897031836,-150.0,9.178e-05,2]
[342458194,1731897031846,-344.51820703,9.2e-05,3]
[342458195,1731897031857,-1925.13,9.2e-05,3]
[342458196,1731897031910,-230.35179297,9.2e-05,3]
[342458197,1731897031920,-1118.52095305,9.3e-05,3]
[342458198,1731897031932,-2181.47904695,9.3e-05,3]
[342458199,1731897031942,-300.0,9.399e-05,2]
[342458200,1731897031951,-4100.0,9.4e-05,3]
[342458201,1731897031962,-800.0,9.5e-05,3]
[342458202,1731897031971,-800.0,9.6e-05,3]
[342458203,1731897031981,-169.0,9.606e-05,2]
[342458204,1731897031991,-233.6395,9.65e-05,2]
[342458205,1731897032000,-150.251,9.65e-05,2]
[342458206,1731897032009,-800.0,9.7e-05,3]
[342458207,1731897032019,-150.0,9.728e-05,2]
[342458208,1731897032028,-150.0,9.73e-05,2]
[342458209,1731897032038,-150.0,9.73e-05,2]
[342458210,1731897032048,-150.0,9.73e-05,2]
[342458211,1731897032057,-150.0,9.73e-05,2]
[342458212,1731897032070,-150.0,9.73e-05,2]
[342458213,1731897032079,-150.0,9.73e-05,2]
[342458214,1731897032089,-1500.0,9.732e-05,2]
[342458215,1731897032099,-150.0,9.744e-05,2]
[342458216,1731897032108,-150.0,9.744e-05,2]
[342458217,1731897032118,-150.0,9.747e-05,2]
[342458218,1731897032128,-150.0,9.748e-05,2]
[342458219,1731897032138,-150.0,9.749e-05,2]
[342458220,1731897032148,-1002.70262198,9.749e-05,2]
[342458221,1731897032158,-11404.7263,9.75e-05,2]
[342458222,1731897032168,-250.4622,9.75e-05,2]
[342458223,1731897032177,-1097.5757,9.75e-05,2]
[342458224,1731897032187,-1000.0,9.75e-05,2]
[342458225,1731897032196,-58992.7873,9.75e-05,2]
[342458226,1731897032206,-12195.7653,9.75e-05,2]
[342458227,1731897032216,-10877.1473,9.75e-05,2]
[342458228,1731897032226,-5784.8889,9.75e-05,2]
[342458230,1731897032235,-9515.37973182,9.75e-05,2]
[342458235,1731897032384,-302.13291082,9.75e-05,2]
[342458236,1731897032397,-17271.39605736,9.75e-05,2]
[342458237,1731897032407,-150.0,9.751e-05,2]
[342458238,1731897032417,-150.0,9.753e-05,2]
[342458239,1731897032427,-1500.0,9.754e-05,2]
[342458240,1731897032437,-150.0,9.754e-05,2]
[342458241,1731897032447,-150.0,9.755e-05,2]
[342458242,1731897032457,-150.0,9.758e-05,2]
[342458243,1731897032466,-150.0,9.759e-05,2]
[342458244,1731897032476,-150.0,9.759e-05,2]
[342458245,1731897032485,-150.0,9.761e-05,2]
[342458246,1731897032495,-150.0,9.761e-05,2]
[342458247,1731897032504,-150.0,9.766e-05,2]
[342458248,1731897032514,-150.0,9.767e-05,2]
[342458249,1731897032524,-150.0,9.771e-05,2]
[342458250,1731897032534,-150.0,9.773e-05,2]
[342458251,1731897032543,-1500.0,9.774e-05,2]
[342458252,1731897032553,-1500.0,9.776e-05,2]
[342458253,1731897032565,-150.0,9.778e-05,2]
[342458254,1731897032574,-150.0,9.785e-05,2]
[342458255,1731897032583,-1500.0,9.785e-05,2]
[342458256,1731897032593,-150.0,9.786e-05,2]
[342458257,1731897032604,-150.0,9.786e-05,2]
[342458258,1731897032614,-150.0,9.787e-05,2]
[342458259,1731897032624,-1500.0,9.797e-05,2]
[342458260,1731897032634,-150.0,9.799e-05,2]
[342458261,1731897032644,-150.0,9.799e-05,2]
[342458262,1731897032654,-150.0,9.799e-05,2]
[342458263,1731897032665,-1056.53127252,9.8e-05,2]
[342458264,1731897032675,-150.0,9.8e-05,2]
[342458265,1731897032685,-800.0,9.8e-05,3]
[342458266,1731897032695,-150.0,9.805e-05,2]
[342458267,1731897032705,-150.0,9.806e-05,2]
[342458268,1731897032715,-150.0,9.807e-05,2]
[342458269,1731897032725,-1500.0,9.81e-05,2]
[342458270,1731897032734,-150.0,9.814e-05,2]
[342458271,1731897032744,-150.0,9.814e-05,2]
[342458272,1731897032754,-150.0,9.815e-05,2]
[342458273,1731897032764,-150.0,9.818e-05,2]
[342458274,1731897032773,-150.0,9.825e-05,2]
[342458275,1731897032784,-150.0,9.825e-05,2]
[342458276,1731897032796,-150.0,9.83e-05,2]
[342458277,1731897032807,-150.0,9.831e-05,2]
[342458278,1731897032818,-165.50014571,9.834e-05,2]
[342458279,1731897032827,-150.0,9.836e-05,2]
[342458280,1731897032837,-150.0,9.841e-05,2]
[342458281,1731897032846,-150.0,9.844e-05,2]
[342458282,1731897032856,-150.0,9.845e-05,2]
[342458283,1731897032866,-150.0,9.847e-05,2]
[342458284,1731897032876,-150.0,9.848e-05,2]
[342458285,1731897032886,-150.0,9.85e-05,2]
[342458286,1731897032896,-150.0,9.851e-05,2]
[342458287,1731897032906,-150.0,9.852e-05,2]
[342458288,1731897032917,-150.0,9.856e-05,2]
[342458289,1731897032927,-150.0,9.86e-05,2]
[342458290,1731897032937,-1060.1923388,9.86e-05,2]
[342458291,1731897032947,-150.0,9.861e-05,2]
[342458292,1731897032956,-150.0,9.862e-05,2]
[342458293,1731897032966,-3904.0,9.863e-05,2]
[342458294,1731897032975,-150.0,9.865e-05,2]
[342458295,1731897032985,-150.0,9.866e-05,2]
[342458296,1731897032994,-150.0,9.867e-05,2]
[342458297,1731897033004,-150.0,9.869e-05,2]
[342458298,1731897033014,-150.0,9.871e-05,2]
[342458299,1731897033024,-150.0,9.874e-05,2]
[342458300,1731897033033,-150.0,9.881e-05,2]
[342458301,1731897033043,-150.0,9.884e-05,2]
[342458302,1731897033053,-150.0,9.887e-05,2]
[342458303,1731897033064,-150.0,9.888e-05,2]
[342458304,1731897033074,-150.0,9.891e-05,2]
[342458305,1731897033083,-150.0,9.895e-05,2]
[342458306,1731897033094,-150.0,9.896e-05,2]
[342458307,1731897033103,-150.0,9.897e-05,2]
[342458308,1731897033113,-318.43,9.899e-05,2]
[342458309,1731897033123,-150.0,9.899e-05,2]
[342458310,1731897033133,-1500.0,9.899e-05,2]
[342458311,1731897033143,-6299.443561,9.9e-05,2]
[342458312,1731897033153,-1015.4796228,9.9e-05,2]
[342458313,1731897033166,-303.5203772,9.9e-05,2]
[342458314,1731897033176,-2981.3362,9.9e-05,2]
[342458315,1731897033186,-1400.0,9.9e-05,2]
[342458316,1731897033196,-150.0,9.9e-05,2]
[342458317,1731897033205,-1198.0,9.9e-05,3]
[342458318,1731897033215,-5000.0,9.9e-05,2]
[342458319,1731897033225,-150.0,9.902e-05,2]
[342458320,1731897033235,-150.0,9.907e-05,2]
[342458321,1731897033245,-150.0,9.91e-05,2]
[342458322,1731897033255,-150.0,9.91e-05,2]
[342458323,1731897033264,-1500.0,9.911e-05,2]
[342458324,1731897033274,-150.0,9.912e-05,2]
[342458325,1731897033284,-150.0,9.913e-05,2]
[342458326,1731897033294,-1000.0,9.917e-05,2]
[342458327,1731897033303,-150.0,9.921e-05,2]
[342458328,1731897033316,-150.93098283,9.923e-05,2]
[342458329,1731897033325,-150.0,9.924e-05,2]
[342458330,1731897033335,-150.0,9.93e-05,2]
[342458331,1731897033347,-150.0,9.933e-05,2]
[342458332,1731897033360,-150.0,9.933e-05,2]
[342458333,1731897033371,-150.0,9.936e-05,2]
[342458334,1731897033381,-150.0,9.936e-05,2]
[342458335,1731897033391,-150.0,9.939e-05,2]
[342458336,1731897033401,-150.0,9.94e-05,2]
[342458337,1731897033411,-1500.0,9.94e-05,2]
[342458338,1731897033421,-150.0,9.947e-05,2]
[342458339,1731897033430,-150.0,9.948e-05,2]
[342458340,1731897033441,-150.0,9.952e-05,2]
[342458341,1731897033452,-150.0,9.956e-05,2]
[342458342,1731897033461,-100.21243997,9.957e-05,2]
[342458343,1731897033473,-49.78756003,9.957e-05,2]
[342458344,1731897033484,-150.0,9.958e-05,2]
[342458345,1731897033493,-150.0,9.958e-05,2]
[342458346,1731897033503,-1500.0,9.962e-05,2]
[342458347,1731897033513,-150.0,9.967e-05,2]
[342458348,1731897033522,-1500.0,9.97e-05,2]
[342458349,1731897033532,-150.0,9.97e-05,2]
[342458350,1731897033543,-150.0,9.971e-05,2]
[342458351,1731897033553,-502.67647667,9.973e-05,2]
[342458352,1731897033566,-150.0,9.976e-05,2]
[342458353,1731897033576,-150.0,9.978e-05,2]
[342458354,1731897033585,-150.0,9.98e-05,2]
[342458355,1731897033595,-25.13596276,9.981e-05,2]
[342458358,1731897038319,-1474.86403724,9.981e-05,2]
[342458359,1731897038329,-153.77315038,9.983e-05,2]